bitfinex/quotes_SOLUSD_20250416
["timestamp","ask_amount","ask_price","bid_price","bid_amount"]
[1744784245541,1.5366,125.81,125.78,20.41018213]
[1744784245930,10.71877989,125.81,125.78,20.41018213]
[1744784246154,1.5366,125.81,125.78,20.41018213]
[1744784246750,1e-08,125.82,125.78,29.59236202]
[1744784246950,1e-08,125.82,125.79,9.18217989]
[1744784247350,1e-08,125.82,125.8,7.94912559]
[1744784250256,1e-08,125.82,125.79,7.94975753]
[1744784252357,1e-08,125.82,125.79,17.13193742]
[1744784253346,1e-08,125.82,125.81,17.13067365]
[1744784254159,1e-08,125.82,125.81,7.94849376]
[1744784254352,1e-08,125.82,125.81,17.13067365]
[1744784254856,1e-08,125.82,125.81,7.94849376]
[1744784257015,1e-08,125.82,125.8,7.94912559]
[1744784257155,9.1821799,125.82,125.79,7.94944914]
[1744784257660,1e-08,125.82,125.79,7.94944914]
[1744784258360,9.18217989,125.8,125.75,0.063]
[1744784258546,7.94787317,125.82,125.75,8.01499236]
[1744784258547,9.18217989,125.79,125.75,8.01499236]
[1744784258863,9.18217989,125.76,125.75,0.063]
[1744784259366,10.70417989,125.78,125.75,8.01519906]
[1744784259735,10.70417989,125.78,125.75,0.063]
[1744784263073,9.18217989,125.8,125.75,9.24517989]
[1744784263668,7.94876974,125.81,125.75,27.89482875]
[1744784263866,9.18217989,125.8,125.76,9.18217989]
[1744784264675,9.18217989,125.8,125.77,7.9510217]
[1744784266773,9.18217989,125.8,125.75,17.19746617]
[1744784268875,9.18217989,125.79,125.75,8.01528628]
[1744784269246,7.94917532,125.8,125.75,8.01528628]
[1744784269247,9.18217989,125.78,125.75,8.01528628]
[1744784269555,9.18217989,125.78,125.75,0.063]
[1744784269872,9.18217989,125.77,125.75,0.063]
[1744784270244,1.62820001,125.82,125.77,18.64964886]
[1744784270449,10.8103799,125.82,125.77,27.83182875]
[1744784270877,10.8103799,125.82,125.78,7.95038956]
[1744784271053,9.18217989,125.81,125.78,7.95038956]
[1744784271674,9.18217989,125.8,125.77,7.9510217]
[1744784272059,9.18217989,125.79,125.77,7.9510217]
[1744784272265,9.18217989,125.79,125.76,7.95135997]
[1744784272471,9.18217989,125.79,125.75,8.01497588]
[1744784272654,9.18217989,125.78,125.75,0.063]
[1744784272860,9.18217989,125.78,125.75,8.01526146]
[1744784273583,9.18217989,125.76,125.75,0.063]
[1744784275178,17.13383383,125.76,125.75,0.063]
[1744784277187,22.30003998,125.76,125.75,0.063]
[1744784277785,14.34838604,125.76,125.75,0.063]
[1744784277973,14.34838604,125.77,125.75,0.063]
[1744784278865,14.34838604,125.78,125.75,0.063]
[1744784279389,14.34838604,125.77,125.75,0.063]
[1744784279986,14.34838604,125.76,125.75,0.063]
[1744784280879,14.34838604,125.77,125.75,0.063]
[1744784281888,14.34838604,125.78,125.75,0.063]
[1744784282885,14.34838604,125.79,125.75,0.063]
[1744784283574,14.34838604,125.78,125.75,0.063]
[1744784284591,14.34838604,125.76,125.75,0.063]
[1744784287197,22.30003998,125.76,125.75,0.063]
[1744784289994,14.34838604,125.77,125.75,0.063]
[1744784291595,14.34838604,125.76,125.75,0.063]
[1744784292099,22.29973286,125.77,125.75,0.063]
[1744784294489,40.34838604,125.78,125.75,0.063]
[1744784294896,38.44,125.81,125.75,0.063]
[1744784295104,14.34838604,125.81,125.77,14.34838604]
[1744784295305,14.34838604,125.81,125.77,22.29885524]
[1744784295603,14.34838604,125.8,125.76,7.95138618]
[1744784297296,14.34838604,125.8,125.75,41.01332118]
[1744784298503,22.29754001,125.8,125.75,41.01332118]
[1744784298797,14.34838604,125.79,125.75,26.66493514]
[1744784299004,14.34838604,125.78,125.75,0.063]
[1744784299179,14.34838604,125.79,125.75,0.063]
[1744784300702,7.94915397,125.8,125.76,7.95165394]
[1744784300703,14.34838604,125.8,125.76,7.95165394]
[1744784301287,9.17555108,125.8,125.76,7.95165394]
[1744784302418,9.17555108,125.79,125.76,7.95165394]
[1744784304095,9.17555108,125.77,125.75,0.063]
[1744784304783,9.17555108,125.78,125.75,0.063]
[1744784305207,9.17555108,125.77,125.75,0.063]
[1744784309313,7.94912559,125.8,125.75,0.063]
[1744784309690,9.17555108,125.78,125.75,0.063]
[1744784310101,9.17555108,125.79,125.75,0.063]
[1744784310417,9.17555108,125.78,125.75,0.063]
[1744784310714,9.17555108,125.77,125.75,0.063]
[1744784310898,9.17555108,125.76,125.75,0.063]
[1744784311494,9.17555108,125.77,125.75,0.063]
[1744784312317,17.12657287,125.77,125.75,0.063]
[1744784313209,9.17555108,125.77,125.75,0.063]
[1744784318422,17.12660949,125.77,125.75,0.063]
[1744784319029,9.17555108,125.77,125.75,0.063]
[1744784320496,7.95058336,125.78,125.75,0.063]
[1744784320705,9.17555108,125.77,125.75,0.063]
[1744784323226,9.17555108,125.76,125.75,0.063]
[1744784323539,9.17555108,125.77,125.75,0.063]
[1744784323930,17.12625162,125.78,125.75,0.063]
[1744784324809,9.17555108,125.77,125.75,0.063]
[1744784326124,9.17555108,125.78,125.75,0.063]
[1744784326812,17.12617121,125.78,125.75,0.063]
[1744784328856,17.12672084,125.77,125.75,0.063]
[1744784329033,9.17555108,125.76,125.75,0.063]
[1744784330957,17.12720502,125.76,125.75,0.063]
[1744784332463,35.77685388,125.76,125.75,0.063]
[1744784333771,42.13674069,125.76,125.75,0.063]
[1744784334268,26.0,125.73,125.72,0.063]
[1744784334569,35.17555108,125.73,125.72,0.063]
[1744784334739,129.38043766,125.76,125.72,0.063]
[1744784334948,9.17555108,125.74,125.72,0.063]
[1744784335735,9.17555108,125.73,125.72,0.063]
[1744784335941,26.0,125.75,125.72,0.063]
[1744784336166,9.17555108,125.73,125.72,0.063]
[1744784336373,17.12910234,125.73,125.72,0.063]
[1744784343464,7.95355126,125.73,125.72,0.063]
[1744784343651,43.12910234,125.73,125.72,0.063]
[1744784348977,61.7787512,125.73,125.72,0.063]
[1744784352296,74.1387512,125.73,125.72,0.063]
[1744784355076,46.31355126,125.73,125.72,0.063]
[1744784355282,55.48910234,125.73,125.72,0.063]
[1744784357065,74.1387512,125.73,125.72,0.063]
[1744784357478,55.48910234,125.73,125.72,0.063]
[1744784362084,43.12910234,125.73,125.72,0.063]
[1744784364587,33.95355126,125.73,125.72,0.063]
[1744784364791,7.95355126,125.73,125.72,0.063]
[1744784365092,17.12910234,125.73,125.72,0.063]
[1744784367579,9.17555108,125.73,125.72,0.063]
[1744784367774,17.12866217,125.74,125.72,0.063]
[1744784368170,9.17555108,125.73,125.72,0.063]
[1744784371398,17.12910234,125.73,125.72,0.063]
[1744784372199,98.48095552,125.73,125.72,0.063]
[1744784373102,44.64964886,125.71,125.7,0.063]
[1744784374888,61.78001658,125.71,125.69,0.063]
[1744784375193,9.17555108,125.7,125.69,0.063]
[1744784376002,17.13100056,125.7,125.69,0.063]
[1744784376499,18.64964886,125.69,125.67,0.063]
[1744784376686,18.64964886,125.67,125.66,0.063]
[1744784376894,53.82519994,125.67,125.66,0.063]
[1744784377707,53.82519994,125.67,125.65,0.063]
[1744784378004,9.17555108,125.66,125.65,0.063]
[1744784378193,17.13353293,125.66,125.65,0.063]
[1744784380583,9.17555108,125.66,125.65,0.063]
[1744784380883,7.95608242,125.69,125.65,0.063]
[1744784381082,9.17555108,125.69,125.65,0.063]
[1744784382202,9.17555108,125.69,125.65,8.0216152]
[1744784383400,14.36116237,125.71,125.66,14.36116237]
[1744784383603,14.36116237,125.71,125.67,14.36116237]
[1744784383909,22.31557141,125.72,125.67,14.36116237]
[1744784384577,22.31557141,125.72,125.67,22.3179969]
[1744784385905,14.36116237,125.72,125.67,22.3179969]
[1744784386096,14.36116237,125.73,125.68,22.45116237]
[1744784387807,20.29313268,125.74,125.69,14.36116237]
[1744784387994,14.36116237,125.73,125.69,22.31709124]
[1744784388891,14.36116237,125.73,125.69,7.95592887]
[1744784389299,14.36116237,125.73,125.69,22.31709124]
[1744784390508,14.36116237,125.73,125.69,7.95592887]
[1744784391387,14.36116237,125.71,125.68,8.09]
[1744784391800,14.36116237,125.7,125.68,8.09]
[1744784393714,14.36116237,125.71,125.68,8.09]
[1744784393897,14.36116237,125.72,125.68,16.04664853]
[1744784394101,40.36116237,125.73,125.68,30.4078109]
[1744784394601,48.31473979,125.73,125.68,30.4078109]
[1744784395117,40.36116237,125.73,125.68,30.4078109]
[1744784395413,48.31478389,125.73,125.68,30.4078109]
[1744784396417,14.36116237,125.73,125.68,30.4078109]
[1744784397816,22.31487251,125.73,125.68,16.04664853]
[1744784398115,22.31487251,125.73,125.68,30.4078109]
[1744784398515,22.31487251,125.73,125.68,16.04664853]
[1744784398697,14.36116237,125.72,125.68,16.04664853]
[1744784399818,22.31537808,125.72,125.68,16.04664853]
[1744784400117,14.36116237,125.71,125.68,8.09]
[1744784400317,14.36116237,125.7,125.65,22.52306237]
[1744784400510,14.36116237,125.69,125.65,22.52306237]
[1744784400711,14.36116237,125.69,125.65,30.48134178]
[1744784401018,14.36116237,125.7,125.65,30.48134178]
[1744784402000,22.31661483,125.7,125.65,30.48134178]
[1744784402890,14.36116237,125.69,125.65,30.48134178]
[1744784403090,14.36116237,125.69,125.65,16.12017941]
[1744784403311,9.1907195,125.69,125.65,25.31089891]
[1744784404022,9.1907195,125.7,125.65,25.31089891]
[1744784404199,17.14553614,125.71,125.66,9.1907195]
[1744784404718,9.1907195,125.7,125.66,9.1907195]
[1744784405517,9.1907195,125.7,125.66,17.1482092]
[1744784406028,17.14553614,125.71,125.66,17.1482092]
[1744784406200,43.14521023,125.72,125.67,9.1907195]
[1744784406399,17.14445261,125.73,125.68,9.1907195]
[1744784407425,17.14445261,125.73,125.68,17.14703462]
[1744784408423,9.1907195,125.71,125.66,7.95798185]
[1744784408721,9.1907195,125.7,125.66,7.95798185]
[1744784409519,17.14639748,125.7,125.66,7.95798185]
[1744784409823,17.14639748,125.7,125.65,23.79632638]
[1744784410319,9.1907195,125.69,125.65,23.79632638]
[1744784410496,9.1907195,125.69,125.65,6.6473]
[1744784410701,9.1907195,125.67,125.65,6.6473]
[1744784412207,9.1907195,125.66,125.65,0.063]
[1744784413107,7.95742512,125.67,125.65,0.063]
[1744784413320,26.0,125.68,125.65,0.063]
[1744784413516,35.1907195,125.68,125.65,0.063]
[1744784413905,43.14750083,125.68,125.65,0.063]
[1744784414727,9.1907195,125.67,125.65,0.063]
[1744784415111,9.1907195,125.68,125.65,0.063]
[1744784415310,12.32,125.71,125.65,9.2537195]
[1744784415529,9.1907195,125.7,125.65,9.2537195]
[1744784415829,35.1907195,125.7,125.65,9.2537195]
[1744784416128,9.1907195,125.69,125.65,0.063]
[1744784416625,9.1907195,125.69,125.65,8.0216152]
[1744784416928,9.1907195,125.68,125.65,0.063]
[1744784417104,9.1907195,125.67,125.65,0.063]
[1744784420628,17.14708746,125.69,125.65,0.063]
[1744784420832,26.0,125.7,125.65,9.2537195]
[1744784421128,19.88438343,125.73,125.66,9.1907195]
[1744784421129,17.14581995,125.71,125.66,9.1907195]
[1744784421710,9.1907195,125.7,125.65,9.2537195]
[1744784422735,9.1907195,125.71,125.66,17.14870135]
[1744784423112,9.1907195,125.7,125.66,7.95798185]
[1744784427834,35.1907195,125.71,125.66,7.95798185]
[1744784430336,9.1907195,125.7,125.66,7.95798185]
[1744784431110,12.32,125.73,125.67,9.1907195]
[1744784431311,9.1907195,125.72,125.67,9.1907195]
[1744784431734,21.5107195,125.73,125.67,9.1907195]
[1744784431942,29.46428096,125.73,125.68,7.95671546]
[1744784432314,9.1907195,125.7,125.65,0.063]
[1744784432541,9.1907195,125.7,125.66,7.95798185]
[1744784432943,40.15743961,125.73,125.66,7.95798185]
[1744784433115,9.1907195,125.7,125.66,7.95798185]
[1744784433530,9.1907195,125.72,125.66,17.14870135]
[1744784433741,9.1907195,125.72,125.67,9.1907195]
[1744784434243,17.14536335,125.72,125.66,9.1907195]
[1744784434429,7.95464385,125.72,125.67,9.1907195]
[1744784435217,17.14536335,125.72,125.67,17.14779192]
[1744784435418,17.14536335,125.72,125.67,7.95707242]
[1744784436243,9.1907195,125.71,125.65,9.2537195]
[1744784436844,7.95464385,125.72,125.65,9.2537195]
[1744784437048,0.03,125.75,125.71,9.1907195]
[1744784437936,9.2207195,125.75,125.7,9.1907195]
[1744784438449,9.1907195,125.74,125.69,9.1907195]
[1744784438948,9.1907195,125.74,125.7,9.1907195]
[1744784439128,0.03,125.75,125.71,9.1907195]
[1744784439331,0.03,125.75,125.72,9.1907195]
[1744784439552,0.03,125.75,125.73,9.1907195]
[1744784439845,0.03,125.75,125.72,9.1907195]
[1744784440831,0.03,125.75,125.7,18.64964886]
[1744784441346,0.03,125.75,125.72,9.1907195]
[1744784441539,0.03,125.75,125.71,17.14503013]
[1744784442822,9.2207195,125.75,125.71,17.14503013]
[1744784443022,0.03,125.75,125.71,17.14503013]
[1744784443747,0.03,125.75,125.69,27.84628848]
[1744784443931,0.03,125.75,125.71,9.1907195]
[1744784444139,0.03,125.75,125.72,9.1907195]
[1744784445346,0.03,125.75,125.71,9.1907195]
[1744784445847,0.03,125.75,125.71,17.14529082]
[1744784449266,0.03,125.75,125.73,7.95355126]
[1744784449746,0.03,125.75,125.74,9.1907195]
[1744784451553,0.03,125.75,125.74,17.14363822]
[1744784452156,0.03,125.75,125.74,7.95291872]
[1744784452349,0.03,125.75,125.74,17.14363822]
[1744784452548,0.03,125.75,125.69,19.89013295]
[1744784452757,0.03,125.75,125.72,9.1907195]
[1744784453660,0.03,125.75,125.73,7.95355126]
[1744784456955,0.03,125.75,125.74,9.1907195]
[1744784457260,0.03,125.75,125.73,17.14427076]
[1744784457860,0.03,125.75,125.74,9.1907195]
[1744784458063,0.03,125.75,125.74,17.14363822]
[1744784459446,0.03,125.75,125.74,35.79328708]
[1744784462958,0.03,125.75,125.73,20.23325052]
[1744784463266,0.03,125.75,125.73,29.42397002]
[1744784463663,0.03,125.75,125.73,20.23325052]
[1744784464162,0.03,125.75,125.73,7.95325052]
[1744784464559,0.03,125.75,125.73,17.14397002]
[1744784467867,0.03,125.75,125.74,9.1907195]
[1744784468164,0.03,125.75,125.73,17.14397002]
[1744784470167,0.03,125.75,125.7,21.4707195]
[1744784470344,9.1907195,125.73,125.7,12.28]
[1744784470544,9.1907195,125.74,125.7,12.28]
[1744784470965,9.2207195,125.75,125.7,21.4707195]
[1744784471470,17.17303666,125.75,125.7,29.42585962]
[1744784471668,9.1907195,125.74,125.7,20.23514012]
[1744784472766,9.1907195,125.73,125.69,7.95580021]
[1744784473465,17.14364297,125.74,125.69,17.14651971]
[1744784473677,7.95292347,125.74,125.69,17.14651971]
[1744784473855,17.14364297,125.74,125.69,17.14651971]
[1744784475045,9.1907195,125.74,125.69,17.14651971]
[1744784476165,9.1907195,125.74,125.69,7.95580021]
[1744784476468,9.1907195,125.74,125.69,17.14651971]
[1744784476766,0.03,125.75,125.71,9.1907195]
[1744784477267,0.03,125.75,125.72,7.9541839]
[1744784477648,0.03,125.75,125.73,9.1907195]
[1744784479379,0.03,125.75,125.74,7.95291872]
[1744784479869,0.03,125.75,125.74,17.14363822]
[1744784480051,0.03,125.75,125.74,35.79328708]
[1744784483151,0.03,125.75,125.74,61.79328708]
[1744784483661,0.03,125.77,125.76,26.0]
[1744784483859,0.03,125.77,125.76,55.6579195]
[1744784484265,0.03,125.78,125.76,74.30756836]
[1744784484462,0.03,125.78,125.77,27.84036836]
[1744784485172,0.03,125.78,125.77,35.79139006]
[1744784487281,0.03,125.78,125.77,40.92639072]
[1744784500798,0.03,125.78,125.77,66.92639072]
[1744784501091,0.03,125.78,125.77,40.92639072]
[1744784501593,0.03,125.78,125.77,22.27674186]
[1744784501795,0.03,125.78,125.77,7.9510217]
[1744784503188,0.03,125.78,125.76,12.24]
[1744784503572,0.03,125.78,125.75,33.95197792]
[1744784504067,0.03,125.78,125.75,26.0]
[1744784504292,0.03,125.78,125.72,50.75458724]
[1744784504293,14.32572016,125.77,125.73,7.95328654]
[1744784506378,15.95152016,125.75,125.72,12.22]
[1744784506597,14.32572016,125.74,125.71,0.063]
[1744784507303,14.32572016,125.74,125.71,8.01777291]
[1744784507496,15.95152016,125.75,125.71,8.01777291]
[1744784507677,14.32572016,125.74,125.71,8.01777291]
[1744784507880,14.32572016,125.74,125.71,0.063]
[1744784509204,14.32572016,125.72,125.71,0.063]
[1744784510207,81.38208918,125.72,125.65,0.063]
[1744784510381,14.32572016,125.67,125.65,0.063]
[1744784510697,67.05636902,125.72,125.65,0.063]
[1744784511000,14.32572016,125.68,125.65,0.063]
[1744784513678,34.081,125.72,125.65,14.38872016]
[1744784513999,1.5663,125.72,125.68,14.32572016]
[1744784514180,12.22,125.73,125.69,14.32572016]
[1744784514382,14.32572016,125.73,125.69,14.32572016]
[1744784515699,14.32572016,125.73,125.69,22.28121213]
[1744784516002,27.6047,125.75,125.68,7.95646021]
[1744784516003,14.32572016,125.72,125.68,7.95646021]
[1744784517903,14.32572016,125.72,125.65,34.252]
[1744784517904,14.32572016,125.69,125.65,34.02151056]
[1744784519285,14.32572016,125.69,125.65,48.34723072]
[1744784519804,14.32572016,125.69,125.65,34.02151056]
[1744784520503,7.95511567,125.71,125.65,34.02151056]
[1744784520705,14.32572016,125.69,125.65,34.02151056]
[1744784521391,14.32572016,125.7,125.65,48.34723072]
[1744784521586,26.0,125.73,125.67,14.32572016]
[1744784521805,40.32572016,125.73,125.69,7.95608242]
[1744784522505,14.32572016,125.72,125.69,7.95608242]
[1744784523704,1.6047,125.75,125.7,14.32572016]
[1744784523705,15.93042016,125.75,125.7,14.32572016]
[1744784523913,15.93042016,125.75,125.71,7.95434647]
[1744784524089,12.25,125.78,125.71,22.28006663]
[1744784524283,14.32572016,125.76,125.71,22.28006663]
[1744784524801,14.32572016,125.73,125.68,40.32572016]
[1744784525100,14.32572016,125.7,125.66,7.95798185]
[1744784525698,14.32572016,125.69,125.66,7.95798185]
[1744784526904,14.32572016,125.7,125.66,7.95798185]
[1744784528510,14.32572016,125.69,125.65,8.02134125]
[1744784531407,14.32572016,125.69,125.65,22.34706141]
[1744784532119,14.32572016,125.69,125.65,8.02134125]
[1744784532297,7.95554945,125.7,125.65,8.02134125]
[1744784532495,14.32572016,125.7,125.65,22.34706141]
[1744784534221,14.32572016,125.7,125.65,42.24359941]
[1744784534421,14.32572016,125.71,125.66,14.32572016]
[1744784534924,14.32572016,125.71,125.66,15.94882016]
[1744784535218,7.9541839,125.72,125.66,1.6231]
[1744784535219,14.32572016,125.7,125.66,1.6231]
[1744784535519,14.32572016,125.7,125.67,7.95734861]
[1744784536313,14.32572016,125.72,125.67,22.28306877]
[1744784536616,1.6221,125.74,125.68,14.32572016]
[1744784536923,14.32572016,125.73,125.68,14.32572016]
[1744784537224,14.32572016,125.71,125.67,7.95734861]
[1744784537912,14.32572016,125.7,125.66,9.58080655]
[1744784538109,14.32572016,125.69,125.66,9.58080655]
[1744784538920,14.32572016,125.7,125.66,9.58080655]
[1744784539407,14.32572016,125.71,125.66,23.90652671]
[1744784542325,14.32572016,125.7,125.66,9.58080655]
[1744784543103,9.18910768,125.7,125.66,9.58080655]
[1744784546331,9.18910768,125.71,125.66,18.76991423]
[1744784546512,9.18910768,125.72,125.67,9.18910768]
[1744784547222,1.5545,125.77,125.71,9.18910768]
[1744784547430,7.95128746,125.77,125.73,9.18910768]
[1744784547805,17.14039514,125.77,125.72,9.18910768]
[1744784548431,17.14039514,125.77,125.73,7.95355126]
[1744784548606,9.18910768,125.75,125.71,17.14392432]
[1744784548809,9.18910768,125.74,125.7,18.68005763]
[1744784549003,9.18910768,125.74,125.7,9.49094995]
[1744784549228,14.35024173,125.74,125.7,9.49094995]
[1744784550411,14.35024173,125.76,125.71,14.35024173]
[1744784550820,14.35024173,125.75,125.7,23.84119168]
[1744784551019,14.35024173,125.74,125.7,9.49094995]
[1744784552238,14.35024173,125.75,125.7,23.84119168]
[1744784554538,14.35024173,125.76,125.7,29.37957365]
[1744784554731,14.35024173,125.76,125.71,14.35024173]
[1744784555225,14.35024173,125.76,125.7,43.72981538]
[1744784555226,14.35024173,125.75,125.7,43.72981538]
[1744784557446,14.35024173,125.76,125.71,14.35024173]
[1744784558020,22.30201936,125.76,125.71,14.35024173]
[1744784558640,14.35024173,125.75,125.71,14.35024173]
[1744784558839,22.30256188,125.75,125.71,7.95451191]
[1744784559221,14.35024173,125.75,125.71,7.95451191]
[1744784562024,14.35024173,125.76,125.71,22.30475364]
[1744784564856,26.03,125.77,125.71,27.84155351]
[1744784565033,0.03,125.77,125.72,6.0043]
[1744784565329,14.38024173,125.77,125.72,20.35454173]
[1744784565526,0.03,125.77,125.73,14.35024173]
[1744784565846,0.03,125.77,125.74,7.95291872]
[1744784567454,0.03,125.77,125.74,42.18545725]
[1744784567630,0.03,125.77,125.76,22.30189567]
[1744784567952,0.03,125.77,125.76,40.95154453]
[1744784568146,0.03,125.77,125.76,47.49774453]
[1744784571158,0.03,125.77,125.76,42.31898002]
[1744784575348,0.03,125.77,125.76,68.31898002]
[1744784575669,0.03,125.78,125.77,18.64964886]
[1744784575981,0.03,125.78,125.77,27.82112608]
[1744784576658,0.03,125.78,125.77,35.77214778]
[1744784577365,0.03,125.78,125.77,37.37144778]
[1744784577366,1e-08,125.78,125.77,37.37144778]
[1744784577559,0.03,125.79,125.77,74.05735666]
[1744784577744,0.03,125.8,125.79,25.11604886]
[1744784577939,0.03,125.8,125.79,70.97343496]
[1744784578659,0.03,125.81,125.79,78.92319249]
[1744784578864,0.03,125.81,125.8,53.82112608]
[1744784579052,0.03,125.81,125.8,55.41842608]
[1744784580376,0.03,125.84,125.81,44.64964886]
[1744784580550,0.03,125.84,125.81,27.82112608]
[1744784581459,0.03,125.84,125.81,35.76961984]
[1744784585768,0.03,125.84,125.81,61.76961984]
[1744784589774,0.03,125.84,125.81,43.11997098]
[1744784593067,0.03,125.84,125.81,61.76961984]
[1744784593970,0.03,125.84,125.81,43.11997098]
[1744784595478,0.03,125.84,125.81,61.76961984]
[1744784603072,0.03,125.84,125.82,46.31334886]
[1744784603273,0.03,125.84,125.82,29.48482608]
[1744784604689,0.03,125.88,125.86,7.7657]
[1744784604985,0.03,125.95,125.9,18.64964886]
[1744784605168,0.03,125.95,125.94,9.17147722]
[1744784606888,0.03,125.95,125.94,17.11176624]
[1744784607387,0.03,125.95,125.94,22.23153007]
[1744784613368,2.8911136,125.97,125.95,18.64964886]
[1744784613666,2.8911136,125.97,125.96,14.29124105]
[1744784614274,2.8911136,125.97,125.96,40.29124105]
[1744784615380,2.8911136,125.97,125.96,48.23026931]
[1744784618890,2.8911136,125.97,125.96,66.87991817]
[1744784619973,1e-08,125.97,125.96,66.87991817]
[1744784620172,0.03,126.01,125.97,18.64964886]
[1744784620476,0.03,126.01,125.96,107.77298127]
[1744784620477,0.03,126.01,126.0,14.29124105]
[1744784621472,0.03,126.01,125.98,12.1]
[1744784621782,0.03,126.01,126.0,14.29124105]
[1744784621980,0.03,126.01,126.0,22.22774898]
[1744784628794,0.03,126.01,126.0,40.87739784]
[1744784629182,0.03,126.01,126.0,35.72227047]
[1744784630202,0.03,126.01,126.0,72.26672519]
[1744784630382,0.03,126.03,126.0,92.10799503]
[1744784630590,0.03,126.03,126.02,27.78576254]
[1744784631297,0.03,126.03,126.02,53.78576254]
[1744784632404,0.03,126.03,126.02,61.72101091]
[1744784632905,0.03,126.03,126.02,26.0]
[1744784633092,0.03,126.03,126.02,35.13611368]
[1744784633286,0.03,126.03,126.02,43.07136205]
[1744784634804,0.03,126.03,126.01,9.13611368]
[1744784634999,0.03,126.03,126.0,35.13611368]
[1744784635206,0.03,126.03,126.0,26.0]
[1744784635396,0.03,126.03,126.02,9.13611368]
[1744784636503,0.03,126.03,126.02,17.07136205]
[1744784639208,0.03,126.03,126.02,22.20777889]
[1744784639612,0.03,126.03,126.02,7.93524837]
[1744784639783,0.03,126.03,126.02,14.27253052]
[1744784640604,0.03,126.03,126.01,7.93578564]
[1744784640605,0.03,126.03,126.0,60.2887954]
[1744784640786,0.03,126.03,126.0,12.08]
[1744784640991,14.27253052,126.02,125.97,44.39067649]
[1744784641212,14.27253052,126.02,125.97,22.18]
[1744784641413,14.27253052,126.01,125.97,22.18]
[1744784641590,7.93650793,126.0,125.97,22.18]
[1744784641785,22.20903845,126.0,125.97,22.18]
[1744784642201,22.20903845,126.0,125.97,10.1]
[1744784642412,7.93650793,126.0,125.97,10.1]
[1744784643114,14.27253052,125.99,125.97,10.1]
[1744784644015,22.20991351,125.99,125.97,10.1]
[1744784644213,22.20930968,126.0,125.97,10.1]
[1744784644512,7.93677916,126.0,125.97,10.1]
[1744784644711,14.27253052,125.99,125.97,10.1]
[1744784644917,14.27253052,125.98,125.97,10.1]
[1744784646013,22.21029841,125.98,125.97,10.1]
[1744784646814,22.20996753,125.99,125.97,10.1]
[1744784647202,7.93677126,126.0,125.97,10.1]
[1744784647994,22.20930178,126.0,125.97,10.1]
[1744784648419,14.27253052,126.01,125.97,18.03828713]
[1744784648718,22.20794643,126.02,125.97,32.31081765]
[1744784649097,14.27253052,126.01,125.97,10.1]
[1744784651032,22.20859412,126.01,125.97,10.1]
[1744784651319,22.20859412,126.01,125.96,22.2112821]
[1744784651498,14.27253052,126.02,125.97,14.27253052]
[1744784652817,35.56094873,126.03,125.97,14.27253052]
[1744784653020,49.83347925,126.03,125.98,14.27253052]
[1744784653205,49.83347925,126.03,125.98,22.21004991]
[1744784654116,14.27253052,126.02,125.97,22.21062669]
[1744784654517,1.6259,126.03,125.99,14.27253052]
[1744784654705,0.03,126.03,126.0,14.27253052]
[1744784655416,0.03,126.03,126.01,14.27253052]
[1744784658315,0.03,126.03,126.01,22.20839883]
[1744784658719,0.03,126.03,126.01,14.27253052]
[1744784659397,0.03,126.03,126.01,22.20838514]
[1744784659828,0.03,126.03,126.01,7.93585462]
[1744784660505,0.03,126.03,126.01,22.20838514]
[1744784660705,0.03,126.03,126.02,14.27253052]
[1744784661314,0.03,126.03,126.01,22.20838514]
[1744784662124,0.03,126.03,126.02,14.27253052]
[1744784663428,0.03,126.03,126.02,22.20777889]
[1744784667224,0.03,126.03,126.02,17.07026082]
[1744784673336,0.03,126.03,126.01,33.93568256]
[1744784673584,0.03,126.03,126.0,17.07126151]
[1744784673838,0.03,126.03,126.0,7.93624906]
[1744784674837,0.03,126.03,126.02,9.13501245]
[1744784675338,0.03,126.03,126.0,9.13501245]
[1744784675512,0.03,126.03,126.01,9.13501245]
[1744784675834,0.03,126.03,126.02,9.13501245]
[1744784676940,0.03,126.03,126.02,17.07026082]
[1744784678137,0.03,126.03,126.0,9.13501245]